Cogmind - Beta 17 @@@ ROGUE MODE // 2026.06.24 @ 09:43:41 Player: szymekc Result: Destroyed by D-53 Grenadier with Mini Grenade Launcher Performance ------------- Evolutions (0) 0 Regions Visited (2) 400 Robots Destroyed (19) 95 Value Destroyed (395) 395 Prototype IDs (3) 60 Alien Tech Used (0) 0 Bonus (5000) 5000 TOTAL SCORE: 5950 Bonus ------- Prayed to X0-1V1 5000 Cogmind --------- Core Integrity 0/250 Matter 300/300 Energy 100/100 System Corruption 0% Temperature Cool (12) Movement Core (300) Ox5 Location -10/Mines Parts ------- > --- POWER (1) -------- (None) > --- PROPULSION (2) --- (None) > --- UTILITY (2) ------ Medium Storage Unit X0-1V1's Piety Tracker > --- WEAPON (2) ------- Particle Gun Hammer > --- INVENTORY (10) --- Improved Heat Sink Huge Storage Unit Seismic Detector Particle Gun Particle Gun Light Assault Rifle Light Assault Rifle Light Cannon Mini Grenade Launcher Mining Laser Peak State ------------ > --- POWER ------------ Light Ion Engine > --- PROPULSION ------- Light Treads Light Treads > --- UTILITY ---------- Medium Storage Unit X0-1V1's Piety Tracker > --- WEAPON ----------- Particle Gun Hammer > --- INVENTORY -------- Light Ion Engine Huge Storage Unit Seismic Detector Particle Gun Particle Gun Light Assault Rifle Light Assault Rifle Light Cannon Mini Grenade Launcher Mining Laser [Rating: 21] Favorites ----------- Power Light Ion Engine Engine Light Ion Engine Propulsion Light Treads Treads Light Treads Utility Medium Storage Unit Device Heat Sink Storage Medium Storage Unit Weapon Particle Gun Energy Gun Particle Gun Ballistic Gun Light Assault Rifle Launcher Mini Grenade Launcher Impact Weapon Hammer Build | -11 -10 -10 ------- Run | Yrd Mat Min Slots Evolved . | . . . Power . | . . . Propulsion . | . . . Utility . | . . . Weapon . | . . . Parts Attached 16 | 7 9 . Power 2 | 1 1 . Engine 2 | 1 1 . Core . | . . . Reactor . | . . . Propulsion 2 | 2 . . Treads 2 | 2 . . Leg . | . . . Wheel . | . . . Hover . | . . . Flight . | . . . Utility 6 | 2 4 . Device 5 | 2 3 . Storage 1 | . 1 . Processor . | . . . Hackware . | . . . Protection . | . . . Artifact . | . . . Weapon 6 | 2 4 . Energy Gun 2 | 1 1 . Energy Cannon . | . . . Ballistic Gun 2 | 1 1 . Ballistic Cannon . | . . . Launcher 1 | . 1 . Special Weapon . | . . . Impact Weapon 1 | . 1 . Slashing Weapon . | . . . Piercing Weapon . | . . . Special Melee Weapon . | . . . Unidentified Prototypes 1 | . 1 . Parts Lost 3 | . . 3 Power 1 | . . 1 Propulsion 2 | . . 2 Utility . | . . . Weapon . | . . . Highest Loss Streak 3 | . . 3 To Critical Strikes . | . . . Average Backups 7 | 1 8 10 Power . | . . . Propulsion . | . . . Utility 1 | . 1 3 Weapon 5 | . 5 7 Tool/Special . | . . . Unused Backups 7 | . 1 6 Power . | . . . Propulsion . | . . . Utility 1 | . . 1 Weapon 6 | . 1 5 Tool/Special . | . . . Average Slot Usage (%) 99 | . 99 100 Engine 13 | . 13 14 Treads 28 | . 28 28 Device 16 | . 16 14 Storage 11 | . 11 14 Energy Gun 13 | . 13 14 Ballistic Gun 8 | . 9 . Impact Weapon 5 | . 4 14 Peak Build Rating 21 | 9 21 21 Average Rating 10 | 4 10 20 On Entrance 10 | . 9 21 Avg Prop Armor Cover (%) . | . . . Naked Turns . | . . . Heaviest Build 19 | 8 19 19 Greatest Support 40 | 40 40 40 Greatest Overweight (x) . | . . . Average Overweight (x) . | . . . Largest Inventory Capacity 10 | 5 10 10 Average Capacity 8 | 5 9 10 Most Carried 10 | 3 10 10 Average Carried 7 | 1 8 10 Final Capacity 10 | 5 10 10 Final Carried 10 | 3 10 10 Class Distribution -------------------- 100% | Mutant Dominant Class ---------------- Mutant | -10/Materials Mutant | -10/Mines Resources | -11 -10 -10 ----------- Run | Yrd Mat Min Matter Collected 473 | 274 168 31 Remotely . | . . . Salvage Created 620 | 110 417 93 Parts 31 | 6 22 3 Haulers Intercepted 2 | . 2 . Recyclers Shooed 3 | 1 2 . Parts Field Recycled . | . . . Retrieved Matter . | . . . Parts Self-Destructed . | . . . Prevented . | . . . Parts Restored . | . . . Kills | -11 -10 -10 ------- Run | Yrd Mat Min Combat Hostiles Destroyed 12 | . 10 2 Melee 2 | . . 2 Guns 8 | . 8 . AOE 2 | . 2 . Classes Destroyed 6 | 2 4 . Worker 3 | . 3 . Tunneler 1 | 1 . . Hauler 2 | . 2 . Recycler 1 | 1 . . Swarmer 3 | . 3 . Grunt 9 | . 7 2 Best Kill Streak 3 | 1 3 2 Combat Bots Only 3 | . 3 2 Max Kills in Single Turn 2 | 1 2 1 Gunslinging 1 | . 1 . Exploded 1 | . 1 . Melee 1 | . . 1 Uniques/NPCs Destroyed . | . . . Combat | -11 -10 -10 -------- Run | Yrd Mat Min Hostile Shots Fired 46 | . 28 18 Missed 14 | . 8 6 Hits 32 | . 20 12 Projectile 32 | . 20 12 AOE 9 | . . 9 Critical Strikes 1 | . . 1 Damage Taken 590 | . 211 379 Core 153 | . 53 100 Absorbed by Shields . | . . . Core Remaining (%) 100 | 100 . . Volleys Fired 46 | 4 41 1 Largest 2 | 2 2 1 Hottest 85 | 70 85 65 Shots Fired 88 | 8 79 1 Gun 85 | 8 76 1 Cannon . | . . . Launcher 3 | . 3 . Special . | . . . Kinetic 42 | 4 38 . Thermal 43 | 4 38 1 Explosive 3 | . 3 . Electromagnetic . | . . . Robot Hit Streak 14 | 4 14 7 Robot Miss Streak 2 | 2 2 . Penetration Max . | . . . Secondary Targets 2 | . 2 . Max Gunslinging Chain 1 | . 1 . Shots Hit Robots 76 | 5 60 11 Core Hits 30 | 3 24 3 Critical Kills . | . . . Critical Parts Destroyed . | . . . Critical Strikes 1 | . . 1 Burn 1 | . . 1 Melee Attacks 14 | . 4 10 Impact 14 | . 4 10 Slashing . | . . . Piercing . | . . . Sneak Attacks 4 | . 3 1 Combat Hostiles . | . . . Follow-up Attacks . | . . . Damage Inflicted 1372 | 53 1009 310 Guns 721 | 53 651 17 Cannons . | . . . Explosions 173 | . 173 . Melee 441 | . 148 293 Ramming 37 | . 37 . Kinetic 262 | 16 246 . Thermal 459 | 37 405 17 Explosive 173 | . 173 . Electromagnetic . | . . . Impact 441 | . 148 293 Slashing . | . . . Piercing . | . . . Highest Corruption . | . . . Average Corruption . | . . . Corruption Purged . | . . . Corruption Blocked . | . . . Overload Shots . | . . . Overflow Damage 48 | . 48 . Projectiles . | . . . Explosions . | . . . Melee 48 | . 48 . Knockbacks 1 | . 1 . Impact 1 | . 1 . Kinetic . | . . . Secondary . | . . . Self-Inflicted Damage . | . . . Shots . | . . . Rammed 8 | . 8 . Targets Rammed 8 | . 8 . Kicked . | . . . Crushed . | . . . Highest Temperature 188 | 70 188 12 Average Temperature 46 | 30 48 10 Received Heat Transfer 129 | . 87 42 Siege Activations . | . . . Martial Activations . | . . . Shielding Activations . | . . . Robots Disrupted . | . . . Combat Hostiles . | . . . Robots Corrupted 2 | . 2 . Combat Hostiles . | . . . Parts Fried 1 | . 1 . Impact Corruptions 4 | . 4 . Robots Melted . | . . . Combat Hostiles . | . . . Parts Melted 1 | . 1 . Heat Transferred 1184 | 111 962 111 Parts Sabotaged . | . . . Parts Stolen . | . . . Parts Stripped . | . . . Power Chain Reactions . | . . . Alert | -11 -10 -10 ------- Run | Yrd Mat Min Maximum Alert Level . | . . . Low Security (%) 100 | 100 100 100 Level 1 . | . . . Level 2 . | . . . Level 3 . | . . . Level 4 . | . . . Level 5 . | . . . High Security . | . . . Max Security . | . . . Peak Influence 75 | 5 75 50 Initial 3 | . 3 . Average 19 | . 22 18 Influence Increases 368 | 10 308 50 Destroy 0b10 Robot/C 240 | . 200 40 Destroy 0b10 Robot/NC 35 | 10 25 . Destroy Leader 54 | . 44 10 Successful Hack 5 | . 5 . Destroy Structure 19 | . 19 . Partial Spotted 15 | . 15 . Influence Decreases 368 | 5 313 50 Entered New Map 2 | . 2 . Time Decay 366 | 5 311 50 Squads Dispatched 1 | . 1 . Investigation . | . . . Extermination . | . . . Reinforcement 1 | . 1 . Assault . | . . . Garrison . | . . . Intercept . | . . . Searches Triggered . | . . . Construction Impeded . | . . . Haulers Reinforced . | . . . Active Scanning Responses . | . . . Cargo Convoy Interrupts . | . . . Stealth | -11 -10 -10 --------- Run | Yrd Mat Min Distress Signals 2 | . 2 . Communications Jammed . | . . . Distress Signals . | . . . Times Spotted 30 | . 25 5 Peak Tracking Total 4 | . 4 2 Tactical Retreats . | . . . Traps | -11 -10 -10 ------- Run | Yrd Mat Min Traps Triggered 3 | . 3 . Indirectly . | . . . Trap Hack Attempts . | . . . Triggered . | . . . Disarmed . | . . . Reprogrammed . | . . . Reused . | . . . Traps Extracted . | . . . Installed . | . . . Triggered . | . . . Machines | -11 -10 -10 ---------- Run | Yrd Mat Min Machines Disabled . | . . . Max in Single Turn . | . . . Machines Repaired . | . . . Machines Dismantled . | . . . Machines Sabotaged . | . . . Overloaded Fab Kills . | . . . Hacking | -11 -10 -10 --------- Run | Yrd Mat Min Machines Accessed 2 | . 2 . Terminals 2 | . 2 . Fabricators . | . . . Repair Stations . | . . . Recycling Units . | . . . Scanalyzers . | . . . Garrison Access . | . . . Total Hacks 4 | . 4 . Successful 2 | . 2 . Failed 2 | . 2 . Catastrophic . | . . . Database Lockouts . | . . . Manual 3 | . 3 . Terminals 4 | . 4 . Fabricators . | . . . Repair Stations . | . . . Recycling Units . | . . . Scanalyzers . | . . . Garrison Access . | . . . Terminal Hacks 1 | . 1 . Prototype ID Bank 1 | . 1 . Fabricator Hacks . | . . . Repair Station Hacks . | . . . Recycling Unit Hacks . | . . . Scanalyzer . | . . . Garrison Access Hacks . | . . . Unauthorized Hacks 1 | . 1 . Terminals 1 | . 1 . Botnet 1 | . 1 . Fabricators . | . . . Repair Stations . | . . . Recycling Units . | . . . Scanalyzers . | . . . Garrison Access . | . . . Data Cores Recovered . | . . . Used . | . . . Hacking Detections . | . . . Full Trace Events . | . . . Feedback Events . | . . . Feedback Blocked . | . . . Robot Schematics Acquired . | . . . Robots Built . | . . . Authchips . | . . . Time . | . . . Total Robot Build Rating . | . . . Part Schematics Acquired . | . . . Parts Built . | . . . Authchips . | . . . Time . | . . . Total Part Build Rating . | . . . Part Studies Acquired . | . . . Parts Repaired . | . . . Time . | . . . Parts Recycled . | . . . Recycled Matter . | . . . Retrieved Matter . | . . . Retrieved Components . | . . . Parts Scanalyzed . | . . . Part Schematics Acquired . | . . . Parts Damaged . | . . . Bothacking | -11 -10 -10 ------------ Run | Yrd Mat Min Used RIF Installer . | . . . Robots Hacked . | . . . Non-combat . | . . . Combat . | . . . Robot Hacks Applied . | . . . Relay Couplers Released . | . . . Fabnet Peak Effective % . | . . . Robots Rewired . | . . . Allies Hacked . | . . . Hacks Repelled . | . . . Allies | -11 -10 -10 -------- Run | Yrd Mat Min Total Allies . | . . . Largest Group . | . . . Highest-Rated Group . | . . . Highest-Rated Ally . | . . . Total Orders . | . . . Ally Attacks . | . . . Total Damage . | . . . Kills . | . . . Allies Corrupted . | . . . Allies Melted . | . . . X0-1V1 Amusement Gains 46 | . 6 40 Intel | -11 -10 -10 ------- Run | Yrd Mat Min Active Infowar (turns) 222 | 26 196 . Terrain 182 | 23 159 . Seismic 222 | 26 196 . Robot Analysis Total . | . . . Derelict Logs Recovered . | . . . Drone Launches . | . . . Drone Recoveries . | . . . Exploration | -11 -10 -10 ------------- Run | Yrd Mat Min Turns Passed 1307 | 118 1044 145 Spaces Moved 670 | 62 540 68 Core 4 | 4 . . Treads 666 | 58 540 68 Legs . | . . . Wheels . | . . . Hover . | . . . Flight . | . . . Fastest Speed 50 | 50 160 160 Average Speed 159 | 152 160 160 Slowest Speed 160 | 160 160 160 Overloaded Moves . | . . . Propulsion Burnouts . | . . . Robots Hopped . | . . . Potential Cave-ins . | . . . Cave-ins Triggered . | . . . Exploration Rate (%) 37 | 3 97 12 Regions Visited 2 Branch Regions 1 Pre-discovered Areas . | . . . Known Exits Taken . | . . . Unknown Exits Taken 2 | 1 1 . Scrap Searched . | . . . Spaces Dug 15 | . 15 . Terrain Destroyed 25 | . 25 . Melee . | . . . Projectile . | . . . AOE 25 | . 25 . Terrain Rammed . | . . . Walls Destroyed . | . . . Machines Disabled . | . . . Actions | -11 -10 -10 --------- Run | Yrd Mat Min Total 795 | 75 634 86 Wait 23 | . 16 7 Move 668 | 61 539 68 Hop . | . . . Pick Up 11 | 3 8 . Fast Attach 11 | 7 4 . Attach . | . . . Detach . | . . . Swap 10 | . 10 . Drop 4 | . 4 . Fire 46 | 4 41 1 Melee 14 | . 4 10 Ram . | . . . Kick . | . . . Crush 8 | . 8 . Escape Stasis . | . . . Rewire . | . . . Trap . | . . . Miscellaneous . | . . . Route ------- -11/Scrapyard -10/Materials (discovered 5 exits: [*Mat x3] / [*Min] / [*Sub]) -10/Mines (discovered 2 exits: [*Mat] / [*Exi]) History --------- Turn | Location | Event 5 | -11/Scrapyard | Discovered new exit (range 16) 119 | -11/Scrapyard | Entered Materials 336 | -10/Materials | Build established: Mutant 573 | -10/Materials | Discovered new exit (range 16) 677 | -10/Materials | Discovered new exit (range 12) 776 | -10/Materials | Discovered new exit (range 13) 989 | -10/Materials | Discovered new exit (range 11) 1102 | -10/Materials | Discovered new exit (range 8) 1113 | -10/Materials | Made a sacrifice at D.C.S.S. Altar Unit 1114 | -10/Materials | Core integrity fell below 50% 1163 | -10/Materials | Entered Mines 1205 | -10/Mines | Discovered new exit (range 5) 1226 | -10/Mines | Deemed a non-threat by the Exiles lab entrance 1226 | -10/Mines | Discovered new exit (range 5) 1280 | -10/Mines | Assembled infested the area 1302 | -10/Mines | Core integrity fell below 20% 1308 | -10/Mines | Destroyed by D-53 Grenadier with Mini Grenade Launcher Last Messages --------------- 01192_ R-06 Scavenger collects Heat Sink. 01193_ Sneak attack on R-06 Scavenger. 01199_ Acquired 31 matter. 01205_ EXIT=FOUND 01226_ "No threat detected, you may enter." 01226_ EXIT=FOUND 01280_ ALERT: Infestation in the mines, dispatching Demolisher response squad. 01280_ X0-1V1 thinks this is hilarious! 01294_ C-45 Heavy ARC bursts open, deploying its payload. 01294_ D-53 Grenadier unfolds itself. 01294_ K-01 Serf destroyed. 01303_ The unstable cave ceiling collapses. 01303_ Lgt. Treads destroyed. 01303_ D-53 Grenadier destroyed. 01304_ The unstable cave ceiling collapses. 01307_ D-53 Grenadier suffers critical hit (Burn). 01308_ U-05 Engineer lays Concrete. 01308_ Lgt. Ion Engine destroyed. 01308_ X0-1V1 guffaws! Map ----- +----------------------------------------------------+ | ?????????????????????????????????????????????????? | | ?????????????????????????????????????????????????? | | ?????????????????????????????????????????????????? | | ?????????????????????????????????????????????????? | | ?????????????????????????????????????????????????? | | ?????????????????????????????????????????????????? | | ?????????????????????????????????????????????????? | | ?????????????????????????????????????????????????? | | ?????????????????????????????????????????????????? | | ?????????????????????????????????????????????????? | | ?????????????????????????????????????????????????? | | ?????????????????????????????????????????????????? | | ?????????????????????????????????????????????????? | | ?????????????????????????????????????????????????? | | ????????????????????????????##???????????????????? | | ??????????????????????????## ##??????????????????? | | ???????????????#???????### ##?????????????????? | | ???????????????# ?????## ###???????????????? | | ???????????????# ##### ##??????????????? | | ???????????????# u ##?????????????? | | ???????????????# $ ####??????????? | | ??????????????????### # #??????????? | | ????????????????????# # #?????????? | | ????????????????????# ??? #?????????? | | ????????????????????# #??????????????????? | | ????????????????????# @ #??????????????????? | | ????????????????????# #??????????????????? | | ????????????????????# d #??????????????????? | | ????????????????????## ##??????????????????? | | ?????????????????????## # ##???????????????????? | | ??????????????????????# ####??????????###???????? | | ?????????????????????## #?????####???## ###?????? | | ?????????????????????# ####### ##??# ###???? | | ?????????????????????# %% #### ## #???? | | ?????????????????????# ## ### ####<#???? | | ????????????????????## ## ### ###???##???? | | ????????????????????# ### #?????????? | | ???????????????????# ##?#### < #?????????? | | ???????????????????# ##?????## ##?????????? | | ???????????????????# #????????## ####??????????? | | ???????????????????##??????????#####?????????????? | | ?????????????????????????????????????????????????? | | ?????????????????????????????????????????????????? | | ?????????????????????????????????????????????????? | | ?????????????????????????????????????????????????? | | | | | | | | | | | +----------------------------------------------------+ Best States ------------- Heat Dissipation 39 Energy Generation 10 Energy Capacity 125 Matter Stores 300 Matter Capacity 300 Sight Range 16 Terrain Scan Range 16 Terrain Scan Density 10 Evasion (%) 40 Recoil Reduction 2 Item Schematics ----------------- None Robot Schematics ------------------ None Fabricated ------------ Nothing Repaired ---------- Nothing Studied --------- None Alien Tech Used ----------------- None Achievements -------------- None Challenges ------------ None Game ------ Seed FlightBombChainsaw Manual? 0 Play Time 00:07:47 Cumulative 1273.0 hours Start 2026.06.24 @ 09:35:37 End 2026.06.24 @ 09:43:41 Sessions 1 Manual Loads 0 Difficulty Rogue Special Mode None Game No. 402 Rogue 400 Adventurer 2 Explorer 0 Win Type - Total 106 Types 33/24/23/2/1/1/16/2/1/3 Lore% 98 Gallery% 92 Achievement% 91 Wizard Run 0 Options --------- Layout 0 ASCII 0 Keyboard 1 Movement Numpad Keybinds 0 Fullscreen 1 Font 24/Smallcaps Map View 76x50 Zoom Use 0% Tactical HUD 1 Map Filters NONE Filters NONE Steam 1 RUN: a51d76ae-4f18-414c-86d4-b539822b25f8